fUST/lending_fUST_20250109
["ID","MTS","AMOUNT","RATE_DAILY","PERIOD"]
[348231973,1736407837104,-500.0,0.00019452,3]
[348231974,1736407837114,-1057.71,0.00019452,3]
[348231975,1736407837124,-500.0,0.00019452,3]
[348231976,1736407837135,-943.95,0.00019452,3]
[348231977,1736407837145,-6535.70718984,0.00019452,3]
[348232003,1736407838369,-500.0,0.00019125,2]
[348232005,1736407838379,-500.0,0.00019125,2]
[348232007,1736407838390,-500.0,0.00019125,2]
[348232009,1736407838399,-532.11062712,0.00019125,2]
[348232011,1736407838409,-500.0,0.00019125,2]
[348232013,1736407838419,-500.0,0.00019125,2]
[348232015,1736407838428,-475.60051998,0.00019125,2]
[348232017,1736407838437,-500.0,0.00019125,2]
[348232019,1736407838447,-301.87579795,0.00019125,2]
[348232021,1736407838456,-500.0,0.00019125,2]
[348232023,1736407838466,-500.0,0.00019125,2]
[348232025,1736407838475,-500.0,0.00019125,2]
[348232027,1736407838485,-500.0,0.00019125,2]
[348232029,1736407838494,-500.0,0.00019125,2]
[348232031,1736407838503,-500.0,0.00019125,2]
[348232033,1736407838517,-500.0,0.00019125,2]
[348232035,1736407838527,-500.0,0.00019125,2]
[348232037,1736407838536,-500.0,0.00019125,2]
[348232039,1736407838545,-500.0,0.00019125,2]
[348232041,1736407838555,-500.0,0.00019125,2]
[348232043,1736407838565,-500.0,0.00019125,2]
[348232045,1736407838575,-500.0,0.00019125,2]
[348232047,1736407838584,-500.0,0.00019125,2]
[348232049,1736407838595,-500.0,0.00019125,2]
[348232051,1736407838604,-500.0,0.00019125,2]
[348232053,1736407838614,-500.0,0.00019125,2]
[348232055,1736407838623,-500.0,0.00019125,2]
[348232057,1736407838635,-505.47685984,0.00019125,2]
[348232059,1736407838645,-500.0,0.00019178,2]
[348232061,1736407838656,-500.0,0.00019178,2]
[348232063,1736407838665,-504.09201086,0.00019273,2]
[348232065,1736407838675,-500.0,0.00019273,2]
[348232067,1736407838685,-500.0,0.00019299,3]
[348232069,1736407838694,-498.47539653,0.00019352,2]
[348232071,1736407838703,-2511.05281016,0.00019452,3]
[348232073,1736407838714,-500.0,0.00019452,3]
[348232075,1736407838724,-507.61,0.00019452,3]
[348232077,1736407838734,-500.0,0.00019452,3]
[348232079,1736407838744,-500.0,0.00019452,3]
[348232081,1736407838753,-500.0,0.00019452,3]
[348232083,1736407838762,-500.0,0.00019452,3]
[348232085,1736407838771,-820.26,0.00019452,3]
[348232087,1736407838781,-500.0,0.00019452,3]
[348232089,1736407838790,-500.0,0.00019452,3]
[348232091,1736407838800,-500.0,0.00019452,3]
[348232093,1736407838809,-500.0,0.00019452,3]
[348232095,1736407838818,-500.0,0.00019452,3]
[348232097,1736407838827,-500.0,0.00019452,3]
[348232099,1736407838836,-384.77278925,0.00019452,3]
[348232101,1736407838845,-500.0,0.00019452,3]
[348232103,1736407838854,-500.0,0.00019452,3]
[348232105,1736407838863,-500.0,0.00019452,3]
[348232107,1736407838872,-1000.0,0.00019455,2]
[348232109,1736407838881,-502.00796745,0.00019473,2]
[348232111,1736407838892,-501.63187538,0.00019473,2]
[348232113,1736407838901,-189.15896495,0.00019473,2]
[348232115,1736407838910,-500.0,0.00019473,2]
[348232117,1736407838919,-502.17178453,0.00019473,2]
[348232119,1736407838927,-502.1682994,0.00019473,2]
[348232121,1736407838937,-503.0759426,0.00019473,2]
[348232123,1736407838946,-210.03178391,0.00019473,2]
[348232125,1736407838955,-500.82980106,0.00019473,2]
[348232127,1736407838963,-500.0,0.00019473,2]
[348232129,1736407838974,-160.69817172,0.00019473,2]
[348232131,1736407838983,-265.93290964,0.00019473,2]
[348232133,1736407838992,-1000.0,0.00019479,2]
[348232135,1736407839001,-152.999976,0.00019488,2]
[348232137,1736407839010,-151.0,0.00019488,2]
[348232139,1736407839019,-1000.0,0.00019497,2]
[348232142,1736407839032,-7568.12575143,0.000195,2]
[348232145,1736407839049,-777.54424857,0.000195,2]
[348232147,1736407839061,-480.531299,0.000195,2]
[348232150,1736407839073,-480.531299,0.000195,2]
[348232152,1736407839084,-151.0,0.000195,2]
[348232154,1736407839095,-151.0,0.000195,2]
[348232156,1736407839106,-151.0,0.000195,2]
[348232159,1736407839118,-151.0,0.000195,2]
[348232161,1736407839129,-151.0,0.000195,2]
[348232163,1736407839142,-151.0,0.000195,2]
[348232166,1736407839154,-151.0,0.000195,2]
[348232168,1736407839166,-1000.0,0.00019523,2]
[348232171,1736407839178,-1000.0,0.0001956,2]
[348232173,1736407839189,-151.0,0.00019573,2]
[348232175,1736407839201,-195.251215,0.00019573,2]
[348232178,1736407839213,-151.0,0.00019573,2]
[348232180,1736407839225,-151.0,0.00019573,2]
[348232182,1736407839237,-151.0,0.00019573,2]
[348232184,1736407839249,-151.0,0.00019573,2]
[348232187,1736407839260,-151.0,0.00019573,2]
[348232189,1736407839271,-535.875842,0.00019573,2]
[348232191,1736407839282,-535.875842,0.00019573,2]
[348232193,1736407839294,-172.257211,0.00019573,2]
[348232196,1736407839306,-302.542245,0.00019573,2]
[348232198,1736407839317,-302.542245,0.00019573,2]
[348232200,1736407839328,-151.0,0.00019573,2]
[348232202,1736407839339,-151.0,0.00019573,2]
[348232204,1736407839348,-1303.626935,0.00019573,2]
[348232206,1736407839359,-215.25876541,0.00019573,2]
[348232209,1736407839374,-1088.36816959,0.00019573,2]
[348232211,1736407839388,-572.1,0.00019573,3]
[348232214,1736407839400,-179.045142,0.00019573,2]
[348232216,1736407839411,-179.045142,0.00019573,2]
[348232218,1736407839424,-2648.56,0.00019573,3]
[348232221,1736407839435,-500.0,0.00019573,3]
[348232223,1736407839448,-1000.0,0.00019648,2]
[348232225,1736407839461,-1000.0,0.00019688,2]
[348232228,1736407839473,-151.0,0.00019695,2]
[348232230,1736407839485,-1901.59026,0.00019695,2]
[348232232,1736407839499,-1901.59026,0.00019695,2]
[348232234,1736407839509,-177.072238,0.00019695,2]
[348232236,1736407839522,-252.751992,0.00019695,2]
[348232238,1736407839532,-1000.0,0.00019721,2]
[348232241,1736407839542,-480.531299,0.00019726,2]
[348232243,1736407839554,-480.531299,0.00019726,2]
[348232245,1736407839567,-151.0,0.00019726,2]
[348232248,1736407839580,-151.0,0.00019726,2]
[348232250,1736407839592,-500.0,0.00019726,3]
[348232252,1736407839605,-535.875842,0.00019726,2]
[348232254,1736407839615,-535.875842,0.00019726,2]
[348232256,1736407839626,-1666.5,0.00019726,3]
[348232259,1736407839640,-302.542245,0.00019726,2]
[348232261,1736407839651,-302.542245,0.00019726,2]
[348232263,1736407839663,-151.0,0.00019726,2]
[348232265,1736407839676,-151.0,0.00019726,2]
[348232268,1736407839687,-500.0,0.00019726,3]
[348232270,1736407839697,-1303.626935,0.00019726,2]
[348232272,1736407839707,-1303.626935,0.00019726,2]
[348232274,1736407839717,-500.0,0.00019726,3]
[348232276,1736407839728,-500.0,0.00019726,3]
[348232278,1736407839739,-179.045142,0.00019726,2]
[348232280,1736407839750,-179.045142,0.00019726,2]
[348232282,1736407839761,-1951.95949958,0.00019726,2]
[348232285,1736407839774,-13642.17050042,0.00019726,2]
[348232287,1736407839785,-500.0,0.00019726,3]
[348232289,1736407839795,-500.0,0.00019726,3]
[348232291,1736407839806,-1471.28,0.00019726,3]
[348232293,1736407839817,-151.0,0.00019726,2]
[348232296,1736407839827,-151.0,0.00019726,2]
[348232298,1736407839838,-500.0,0.00019726,3]
[348232300,1736407839849,-151.0,0.00019726,2]
[348232302,1736407839860,-151.0,0.00019726,2]
[348232304,1736407839871,-500.0,0.00019726,3]
[348232306,1736407839881,-500.0,0.00019726,3]
[348232309,1736407839893,-500.0,0.00019726,3]
[348232311,1736407839903,-500.0,0.00019726,3]
[348232313,1736407839912,-500.0,0.00019726,3]
[348232315,1736407839922,-369.05,0.00019726,3]
[348232317,1736407839933,-734.79,0.00019726,3]
[348232320,1736407839943,-500.0,0.00019726,3]
[348232322,1736407839952,-500.0,0.00019726,3]
[348232324,1736407839961,-500.0,0.00019726,3]
[348232326,1736407839971,-500.0,0.00019726,3]
[348232328,1736407839981,-794.11,0.00019726,3]
[348232330,1736407839992,-500.0,0.00019726,3]
[348232332,1736407840002,-1057.71,0.00019726,3]
[348232334,1736407840011,-500.0,0.00019726,3]
[348232336,1736407840021,-943.95,0.00019726,3]
[348232339,1736407840032,-9046.76,0.00019726,3]
[348232341,1736407840042,-507.61,0.00019726,3]
[348232343,1736407840051,-169.97081782,0.00019726,3]
[348232345,1736407840061,-500.0,0.00019726,3]
[348232347,1736407840071,-500.0,0.00019726,3]
[348232349,1736407840080,-500.0,0.00019726,3]
[348232351,1736407840090,-820.26,0.00019726,3]
[348232353,1736407840099,-500.0,0.00019726,3]
[348232355,1736407840109,-500.0,0.00019726,3]
[348232369,1736407840231,-500.0,0.00019726,3]
[348232372,1736407840248,-500.0,0.00019726,3]
[348232374,1736407840259,-500.0,0.00019726,3]
[348232376,1736407840269,-500.0,0.00019726,3]
[348232378,1736407840278,-500.0,0.00019726,3]
[348232380,1736407840287,-1000.0,0.00019821,2]
[348232382,1736407840297,-242.8518761,0.00019836,2]
[348232384,1736407840306,-151.0,0.00019847,2]
[348232386,1736407840316,-480.531299,0.00019847,2]
[348232388,1736407840325,-480.531299,0.00019847,2]
[348232390,1736407840334,-151.0,0.00019847,2]
[348232392,1736407840344,-151.0,0.00019847,2]
[348232394,1736407840353,-251.827136,0.00019847,2]
[348232396,1736407840362,-151.0,0.00019847,2]
[348232398,1736407840371,-1901.59026,0.00019847,2]
[348232400,1736407840381,-1901.59026,0.00019847,2]
[348232402,1736407840392,-2648.56,0.00019847,3]
[348232404,1736407840402,-500.0,0.00019847,3]
[348232406,1736407840412,-467.31288698,0.00019978,2]
[348232408,1736407840421,-1733.0,0.0002,2]
[348232410,1736407840430,-151.0,0.0002,2]
[348232412,1736407840439,-480.531299,0.0002,2]
[348232415,1736407840449,-480.531299,0.0002,2]
[348232417,1736407840459,-151.0,0.0002,2]
[348232418,1736407840468,-151.0,0.0002,2]
[348232421,1736407840477,-151.0,0.0002,2]
[348232422,1736407840487,-151.0,0.0002,2]
[348232424,1736407840496,-1901.59026,0.0002,2]
[348232426,1736407840506,-1901.59026,0.0002,2]
[348232428,1736407840518,-535.875842,0.0002,2]
[348232431,1736407840528,-535.875842,0.0002,2]
[348232433,1736407840538,-535.875842,0.0002,2]
[348232435,1736407840548,-535.875842,0.0002,2]
[348232436,1736407840558,-1666.5,0.0002,3]
[348232438,1736407840567,-302.542245,0.0002,2]
[348232441,1736407840577,-302.542245,0.0002,2]
[348232442,1736407840586,-302.542245,0.0002,2]
[348232444,1736407840598,-302.542245,0.0002,2]
[348232446,1736407840607,-161.571256,0.0002,2]
[348232449,1736407840617,-151.0,0.0002,2]
[348232451,1736407840627,-151.0,0.0002,2]
[348232453,1736407840639,-348.48289877,0.0002,3]
[348232455,1736407840648,-1303.626935,0.0002,2]
[348232457,1736407840658,-1303.626935,0.0002,2]
[348232458,1736407840667,-1303.626935,0.0002,2]
[348232460,1736407840677,-1303.626935,0.0002,2]
[348232463,1736407840686,-533.48,0.0002,3]
[348232465,1736407840696,-179.045142,0.0002,2]
[348232466,1736407840705,-179.045142,0.0002,2]
[348232469,1736407840714,-179.045142,0.0002,2]
[348232470,1736407840724,-179.045142,0.0002,2]
[348232473,1736407840733,-15594.13,0.0002,2]
[348232474,1736407840742,-500.0,0.0002,3]
[348232477,1736407840751,-1471.28,0.0002,3]
[348232479,1736407840763,-151.0,0.0002,2]
[348232481,1736407840772,-151.0,0.0002,2]
[348232483,1736407840782,-500.0,0.0002,3]
[348232485,1736407840792,-240.685625,0.0002,2]
[348232487,1736407840801,-502.53,0.0002,3]
[348232489,1736407840811,-500.0,0.0002,3]
[348232491,1736407840820,-500.0,0.0002,3]
[348232493,1736407840829,-18380.65608866,0.0002,2]
[348232502,1736407840911,-312.2633,0.0002,2]
[348232504,1736407840922,-1043.7,0.0002,2]
[348232507,1736407840934,-66711.83044606,0.0002,2]
[348232508,1736407840945,-734.79,0.0002,3]
[348232510,1736407840954,-500.0,0.0002,3]
[348232513,1736407840964,-500.0,0.0002,3]
[348232514,1736407840973,-500.0,0.0002,3]
[348232516,1736407840982,-794.11,0.0002,3]
[348232519,1736407840992,-500.0,0.0002,3]
[348232521,1736407841001,-1057.71,0.0002,3]
[348232522,1736407841010,-943.95,0.0002,3]
[348232524,1736407841020,-9046.76,0.0002,3]
[348232527,1736407841029,-507.61,0.0002,3]
[348232529,1736407841038,-500.0,0.0002,3]
[348232530,1736407841047,-500.0,0.0002,3]
[348232533,1736407841057,-500.0,0.0002,3]
[348232535,1736407841067,-820.26,0.0002,3]
[348232537,1736407841076,-500.0,0.0002,3]
[348232538,1736407841086,-500.0,0.0002,3]
[348232541,1736407841095,-500.0,0.0002,3]
[348232542,1736407841104,-500.0,0.0002,3]
[348232543,1736407841114,-500.0,0.0002,3]
[348232544,1736407841123,-500.0,0.0002,3]
[348232545,1736407841134,-429.02,0.0002,3]
[348232546,1736407841143,-488.33870159,0.00020021,2]
[348232547,1736407841152,-621.52321461,0.00020021,2]
[348232548,1736407841162,-151.0,0.000201,3]
[348232549,1736407841172,-151.0,0.00020121,2]
[348232550,1736407841181,-480.531299,0.00020121,2]
[348232551,1736407841191,-480.531299,0.00020121,2]
[348232552,1736407841201,-151.0,0.00020121,2]
[348232553,1736407841210,-151.0,0.00020121,2]
[348232554,1736407841219,-153.219176,0.00020121,2]
[348232555,1736407841228,-1901.59026,0.00020121,2]
[348232556,1736407841237,-1901.59026,0.00020121,2]
[348232557,1736407841247,-2648.56,0.00020121,3]
[348232558,1736407841257,-500.0,0.00020121,3]
[348232559,1736407841266,-396.709,0.00020208,2]
[348232561,1736407841276,-151.0,0.00020273,2]
[348232562,1736407841286,-500.0,0.00020273,3]
[348232563,1736407841295,-500.0,0.00020273,3]
[348232565,1736407841305,-150.2,0.00020273,3]
[348232567,1736407841315,-150.2,0.00020273,3]
[348232569,1736407841325,-151.17273051,0.00020273,3]
[348232571,1736407841335,-1901.59026,0.00020273,2]
[348232573,1736407841344,-1901.59026,0.00020273,2]
[348232575,1736407841354,-535.875842,0.00020273,2]
[348232577,1736407841363,-535.875842,0.00020273,2]
[348232579,1736407841373,-1666.5,0.00020273,3]
[348232581,1736407841383,-302.542245,0.00020273,2]
[348232583,1736407841393,-302.542245,0.00020273,2]
[348232585,1736407841402,-151.0,0.00020273,2]
[348232587,1736407841411,-1303.626935,0.00020273,2]
[348232589,1736407841421,-1303.626935,0.00020273,2]
[348232591,1736407841431,-179.045142,0.00020273,2]
[348232593,1736407841441,-179.045142,0.00020273,2]
[348232595,1736407841451,-15594.13,0.00020273,2]
[348232597,1736407841460,-196.26,0.00020273,3]
[348232600,1736407841470,-1471.28,0.00020273,3]
[348232602,1736407841479,-151.0,0.00020273,2]
[348232604,1736407841489,-314.22,0.00020273,3]
[348232606,1736407841498,-210.72,0.00020273,3]
[348232608,1736407841508,-150.2,0.00020273,3]
[348232610,1736407841519,-734.79,0.00020273,3]
[348232612,1736407841529,-500.0,0.00020273,3]
[348232614,1736407841538,-500.0,0.00020273,3]
[348232616,1736407841547,-150.2,0.00020273,3]
[348232618,1736407841557,-150.2,0.00020273,2]
[348232620,1736407841566,-285.41,0.00020273,3]
[348232622,1736407841575,-150.2,0.00020273,3]
[348232624,1736407841584,-500.0,0.00020273,3]
[348232626,1736407841592,-150.2,0.00020273,2]
[348232628,1736407841602,-164.13033632,0.00020273,3]
[348232630,1736407841611,-794.11,0.00020273,3]
[348232632,1736407841620,-500.0,0.00020273,3]
[348232634,1736407841630,-500.0,0.00020273,3]
[348232636,1736407841641,-150.2,0.00020273,2]
[348232638,1736407841650,-150.2,0.00020273,3]
[348232640,1736407841660,-500.0,0.00020273,3]
[348232642,1736407841669,-150.2,0.00020273,3]
[348232644,1736407841679,-1057.71,0.00020273,3]
[348232646,1736407841687,-943.95,0.00020273,3]
[348232648,1736407841697,-9046.76,0.00020273,3]
[348232650,1736407841707,-500.0,0.00020273,3]
[348232652,1736407841716,-500.0,0.00020273,2]
[348232654,1736407841725,-150.2,0.00020273,3]
[348232656,1736407841735,-507.61,0.00020273,3]
[348232658,1736407841744,-150.2,0.00020273,3]
[348232660,1736407841753,-500.0,0.00020273,3]
[348232662,1736407841763,-820.26,0.00020273,3]
[348232664,1736407841772,-500.0,0.00020273,3]
[348232666,1736407841783,-500.0,0.00020273,3]
[348232668,1736407841793,-500.0,0.00020273,3]
[348232670,1736407841802,-500.0,0.00020273,3]
[348232672,1736407841813,-500.0,0.00020273,3]
[348232674,1736407841822,-501.42680098,0.00020273,2]
[348232676,1736407841832,-500.0,0.00020273,2]
[348232678,1736407841841,-151.0,0.000203,4]
[348232680,1736407841850,-352.9591083,0.00020301,2]
[348232682,1736407841859,-151.0,0.00020395,2]
[348232684,1736407841868,-480.531299,0.00020395,2]
[348232686,1736407841877,-480.531299,0.00020395,2]
[348232688,1736407841889,-151.0,0.00020395,2]
[348232690,1736407841898,-282.631428,0.00020395,2]
[348232692,1736407841907,-2648.56,0.00020395,3]
[348232694,1736407841916,-574.52,0.00020395,3]
[348232696,1736407841925,-204.480264,0.00020447,2]
[348232698,1736407841934,-242.8518761,0.00020489,2]
[348232700,1736407841943,-151.0,0.000205,4]
[348232702,1736407841954,-500.0,0.00020547,3]
[348232704,1736407841963,-500.0,0.00020547,3]
[348232706,1736407841972,-150.2,0.00020547,3]
[348232708,1736407841981,-150.64159702,0.00020547,3]
[348232710,1736407841990,-280.3532225,0.00020547,3]
[348232712,1736407841999,-903.55973163,0.00020547,3]
[348232714,1736407842007,-150.2,0.00020547,3]
[348232716,1736407842016,-150.2,0.00020547,3]
[348232718,1736407842026,-500.0,0.00020547,3]
[348232720,1736407842035,-500.0,0.00020547,3]
[348232722,1736407842044,-150.2,0.00020547,3]
[348232725,1736407842053,-150.2,0.00020547,3]
[348232727,1736407842062,-702.12759381,0.00020547,3]
[348232729,1736407842071,-651.17363937,0.00020547,2]
[348232731,1736407842080,-150.27189185,0.00020547,3]
[348232733,1736407842089,-299.17393353,0.00020547,3]
[348232735,1736407842098,-480.531299,0.00020547,2]
[348232737,1736407842107,-480.531299,0.00020547,2]
[348232739,1736407842116,-151.0,0.00020547,2]
[348232741,1736407842125,-1901.59026,0.00020547,2]
[348232743,1736407842133,-1901.59026,0.00020547,2]
[348232745,1736407842144,-535.875842,0.00020547,2]
[348232747,1736407842153,-535.875842,0.00020547,2]
[348232749,1736407842163,-1666.5,0.00020547,3]
[348232751,1736407842172,-302.542245,0.00020547,2]
[348232753,1736407842181,-302.542245,0.00020547,2]
[348232755,1736407842191,-151.0,0.00020547,2]
[348232757,1736407842200,-1303.626935,0.00020547,2]
[348232759,1736407842209,-1303.626935,0.00020547,2]
[348232761,1736407842218,-179.045142,0.00020547,2]
[348232763,1736407842227,-179.045142,0.00020547,2]
[348232765,1736407842237,-15594.13,0.00020547,2]
[348232767,1736407842247,-1471.28,0.00020547,3]
[348232769,1736407842256,-734.79,0.00020547,3]
[348232771,1736407842265,-500.0,0.00020547,3]
[348232773,1736407842275,-500.0,0.00020547,3]
[348232775,1736407842285,-794.11,0.00020547,3]
[348232777,1736407842294,-606.31646703,0.00020547,3]
[348232779,1736407842304,-1057.71,0.00020547,3]
[348232781,1736407842314,-943.95,0.00020547,3]
[348232783,1736407842324,-9046.76,0.00020547,3]
[348232785,1736407842333,-507.61,0.00020547,3]
[348232787,1736407842343,-500.0,0.00020547,3]
[348232789,1736407842352,-820.26,0.00020547,3]
[348232791,1736407842361,-500.0,0.00020547,3]
[348232794,1736407842371,-500.0,0.00020547,3]
[348232796,1736407842380,-500.0,0.00020547,3]
[348232798,1736407842392,-500.0,0.00020547,3]
[348232800,1736407842402,-500.0,0.00020547,3]
[348232802,1736407842411,-500.0,0.00020619,2]
[348232803,1736407842420,-151.15780171,0.00020619,2]
[348232806,1736407842430,-343.72151896,0.00020619,2]
[348232808,1736407842439,-151.0,0.00020669,2]
[348232810,1736407842449,-151.0,0.00020669,2]
[348232812,1736407842458,-2648.56,0.00020669,3]
[348232814,1736407842467,-151.0,0.000207,3]
[348232815,1736407842476,-457.92113705,0.00020722,2]
[348232817,1736407842485,-500.0,0.000208,2]
[348232819,1736407842494,-954.678603,0.00020821,3]
[348232821,1736407842503,-500.0,0.00020821,3]
[348232823,1736407842512,-150.2,0.00020821,3]
[348232825,1736407842522,-150.2,0.00020821,3]
[348232827,1736407842532,-150.2,0.00020821,3]
[348232829,1736407842541,-500.0,0.00020821,3]
[348232831,1736407842549,-502.57762553,0.00020821,3]
[348232833,1736407842561,-150.2,0.00020821,3]
[348232835,1736407842570,-150.2,0.00020821,3]
[348232837,1736407842579,-151.0,0.00020821,2]
[348232840,1736407842588,-480.531299,0.00020821,2]
[348232843,1736407842599,-480.531299,0.00020821,2]
[348232847,1736407842608,-151.0,0.00020821,2]
[348232850,1736407842618,-1901.59026,0.00020821,2]
[348232854,1736407842627,-1901.59026,0.00020821,2]
[348232856,1736407842637,-535.875842,0.00020821,2]
[348232859,1736407842646,-535.875832,0.00020821,2]
[348232861,1736407842655,-1666.5,0.00020821,3]
[348232863,1736407842664,-302.542245,0.00020821,2]
[348232865,1736407842673,-302.542236,0.00020821,2]
[348232867,1736407842682,-151.0,0.00020821,2]
[348232869,1736407842691,-1303.626935,0.00020821,2]
[348232871,1736407842700,-1303.62693,0.00020821,2]
[348232873,1736407842709,-179.045142,0.00020821,2]
[348232875,1736407842718,-179.045145,0.00020821,2]
[348232877,1736407842728,-15594.13,0.00020821,2]
[348232879,1736407842737,-1471.28,0.00020821,3]
[348232881,1736407842746,-734.79,0.00020821,3]
[348232883,1736407842755,-500.0,0.00020821,3]
[348232885,1736407842766,-500.0,0.00020821,3]
[348232887,1736407842775,-794.11,0.00020821,3]
[348232889,1736407842784,-1057.71,0.00020821,3]
[348232891,1736407842793,-8333.99008894,0.00020821,3]
[348232894,1736407842806,-439.89909506,0.00020821,3]
[348233091,1736407844638,-11045.84,0.00019178,2]
[348233093,1736407844650,-417.14897287,0.00019352,2]
[348233094,1736407844659,-2453.33132588,0.00019452,2]
[348233097,1736407844672,-6196.91888504,0.00019452,2]
[348233099,1736407844684,-2395.58978908,0.00019452,2]
[348233101,1736407844694,-11045.84,0.00019726,2]
[348233103,1736407844704,-638.492047,0.0002,2]
[348233105,1736407844714,-11045.84,0.0002,2]
[348233107,1736407844724,-228.32217014,0.00020821,3]
[348233109,1736407844735,-44.54864586,0.00020821,3]
[348233111,1736407844745,-943.95,0.00020821,3]
[348233113,1736407844755,-507.61,0.00020821,3]
[348233116,1736407844765,-596.61,0.00020821,3]
[348233118,1736407844775,-820.26,0.00020821,3]
[348233120,1736407844785,-500.0,0.00020821,3]
[348233122,1736407844794,-500.0,0.00020821,3]
[348233124,1736407844804,-500.0,0.00020821,3]
[348233126,1736407844814,-500.0,0.00020821,3]
[348233130,1736407844825,-190.98,0.00020821,3]
[348233133,1736407844835,-500.0,0.00020822,2]
[348233136,1736407844844,-500.0,0.00020844,2]
[348233138,1736407844853,-151.0,0.000209,4]
[348233142,1736407844863,-151.0,0.000209,4]
[348233145,1736407844873,-500.0,0.00020917,2]
[348233148,1736407844883,-500.0,0.00020917,2]
[348233150,1736407844895,-500.0,0.00020919,2]
[348233153,1736407844905,-329.01280828,0.00020919,2]
[348233155,1736407844916,-2648.56,0.00020943,3]
[348233157,1736407844925,-465.11564435,0.00020977,2]
[348233159,1736407844935,-500.0,0.00021,2]
[348233161,1736407844944,-500.0,0.00021,2]
[348233163,1736407844953,-500.0,0.00021,2]
[348233166,1736407844963,-500.0,0.00021,2]
[348233168,1736407844972,-500.0,0.00021,2]
[348233170,1736407844981,-500.0,0.00021,2]
[348233172,1736407844990,-500.0,0.00021,2]
[348233174,1736407844999,-291.49470031,0.00021,2]
[348233177,1736407845017,-6572.54999999,0.00020273,2]
[348233213,1736407846478,-201.33904452,0.00019999,2]
[348233214,1736407846487,-4473.29000001,0.00020273,2]
[348233215,1736407846496,-11045.84,0.00020547,2]
[348233216,1736407846505,-4936.90040198,0.00020821,2]
[348233217,1736407846518,-963.07862748,0.00020821,2]
[348233218,1736407846532,-2788.5825,0.00020821,2]
[348233219,1736407846543,-2357.27847054,0.00020821,2]
[348233220,1736407846553,-208.50529969,0.00021,2]
[348233221,1736407846563,-500.0,0.00021,2]
[348233222,1736407846572,-500.0,0.00021,2]
[348233223,1736407846581,-500.0,0.00021,2]
[348233224,1736407846591,-500.0,0.00021,2]
[348233225,1736407846601,-500.0,0.00021,2]
[348233226,1736407846610,-500.0,0.00021,2]
[348233227,1736407846620,-500.0,0.00021,2]
[348233228,1736407846629,-500.0,0.00021,2]
[348233229,1736407846639,-365.23613921,0.00021,2]
[348233241,1736407876157,107.45919063,0.00013973,2]
[348233242,1736407876181,96.57304737,0.00013973,2]
[348233247,1736408028475,-24900.0,0.00018314,2]
[348233248,1736408028496,-485.4681486,0.00018333,2]
[348233249,1736408028516,-936.9984173,0.00018631,2]
[348233250,1736408028537,-798.93718066,0.000189,2]
[348233251,1736408028563,-499.0,0.00019177,2]
[348233252,1736408028586,-300.0,0.00019177,2]
[348233253,1736408028609,-500.0,0.00019178,2]
[348233254,1736408028745,-1123.56,0.00019178,2]
[348233255,1736408028767,-500.0,0.00019178,2]